[Event "European Womens-ch 2025"]
[Site "Rhodes"]
[Date "2025.04.09"]
[Round "9.23"]
[White "Rodshtein, Tereza"]
[Black "Zhukova, Natalia"]
[Result "0-1"]
[Annotator "ChessBase"]
[ECO "B22"]
[WhiteElo "2171"]
[BlackElo "2306"]
[PlyCount "64"]
[EventDate "2025.03.29"]
[EventType "swiss"]
[EventCountry "GRE"]
[SourceTitle "playchess.com"]
[Source "ChessBase"]
[SourceQuality "1"]
[TimeControl "40/5400+30:1800+30"]

1. e4 {[%emt 0:00:03]} e6 {[%emt 0:00:11]} 2. d4 {[%emt 0:00:19]} d5 {[%emt 0:00:07]} 3. exd5 {[%emt 0:01:26]} exd5 {[%emt 0:00:07]} 4. Bd3 {[%emt 0:01:02]} c5 {[%emt 0:01:09]} 5. c3 {[%emt 0:07:57]} Nf6 {[%emt 0:02:39]} 6. Nf3 {[%emt 0:04:22]} c4 {[%emt 0:00:17]} 7. Be2 {[%emt 0:02:21]} Be7 {[%emt 0:04:39]} 8. b3 {[%emt 0:02:15]} cxb3 {[%emt 0:00:24]} 9. axb3 {[%emt 0:02:42]} O-O {[%emt 0:00:09]} 10. O-O {[%emt 0:01:22]} Nc6 {[%emt 0:00:22]} 11. c4 {[%emt 0:09:22]} Bf5 {[%emt 0:05:07]} 12. Nc3 {[%emt 0:05:40]} Nb4 {[%emt 0:01:00]} 13. Ne1 {[%emt 0:01:10]} Re8 {[%emt 0:10:30]} 14. Bb2 {[%emt 0:06:45]} a6 {[%emt 0:02:34]} 15. Nd3 {[%emt 0:11:37]} dxc4 {[%emt 0:16:27]} 16. Nxb4 {[%emt 0:04:51]} Bxb4 {[%emt 0:00:09]} 17. bxc4 {[%emt 0:00:13]} Rc8 {[%emt 0:00:30]} 18. Rc1 {[%emt 0:03:38]} Qd7 {[%emt 0:07:02]} 19. Bd3 {[%emt 0:02:34]} Bd6 {[%emt 0:17:41]} 20. h3 {[%emt 0:06:48]} Bb8 {[%emt 0:01:21]} 21. Ne2 {[%emt 0:03:46]} Bxh3 {[%emt 0:07:18]} 22. Ng3 {[%emt 0:02:19]} Bg4 {[%emt 0:01:46]} 23. Qd2 {[%emt 0:00:21]} Nh5 {[%emt 0:02:48]} 24. Nxh5 {[%emt 0:02:21]} Bxh5 {[%emt 0:00:02]} 25. Qg5 {[%emt 0:00:50]} Bg6 {[%emt 0:04:49]} 26. Bxg6 {[%emt 0:02:14]} hxg6 {[%emt 0:00:22]} 27. d5 {[%emt 0:00:43]} Re4 {[%emt 0:00:55]} 28. c5 {[%emt 0:10:52]} Bf4 {[%emt 0:01:40]} 29. Qh4 {[%emt 0:03:14]} Bxc1 {[%emt 0:01:48]} 30. Qxe4 {[%emt 0:00:34]} Bxb2 {[%emt 0:00:02]} 31. Rb1 {[%emt 0:00:29]} Ba3 {[%emt 0:01:43]} 32. c6 {[%emt 0:01:09]} bxc6 {[%emt 0:00:12]} 0-1

[Event "European Womens-ch 2025"]
[Site "Rhodes"]
[Date "2025.04.09"]
[Round "9.24"]
[White "Zherebtsova, Alexandra"]
[Black "Unuk, Laura"]
[Result "1-0"]
[Annotator "ChessBase"]
[ECO "A63"]
[WhiteElo "2229"]
[BlackElo "2301"]
[PlyCount "99"]
[EventDate "2025.03.29"]
[EventType "swiss"]
[EventCountry "GRE"]
[SourceTitle "playchess.com"]
[Source "ChessBase"]
[SourceQuality "1"]
[TimeControl "40/5400+30:1800+30"]

1. d4 {[%emt 0:00:06]} Nf6 {[%emt 0:01:45]} 2. c4 {[%emt 0:00:25]} e6 {[%emt 0:00:06]} 3. g3 {[%emt 0:01:06]} c5 {[%emt 0:02:31]} 4. d5 {[%emt 0:00:09]} d6 {[%emt 0:00:10]} 5. Nc3 {[%emt 0:00:27]} exd5 {[%emt 0:00:16]} 6. cxd5 {[%emt 0:00:17]} g6 {[%emt 0:00:07]} 7. Bg2 {[%emt 0:00:23]} Bg7 {[%emt 0:00:07]} 8. Nf3 {[%emt 0:00:35]} O-O {[%emt 0:00:09]} 9. O-O {[%emt 0:00:07]} Re8 {[%emt 0:00:15]} 10. Re1 {[%emt 0:00:15]} a6 {[%emt 0:01:00]} 11. a4 {[%emt 0:00:04]} Nbd7 {[%emt 0:02:52]} 12. Bf4 {[%emt 0:00:27]} Ng4 {[%emt 0:02:31]} 13. h3 {[%emt 0:05:03]} Nge5 {[%emt 0:00:31]} 14. Ne4 {[%emt 0:12:28]} Nxf3+ {[%emt 0:15:26]} 15. exf3 {[%emt 1:16:08]} Ne5 {[%emt 1:10:14]} 16. Bg5 {[%emt 0:00:30]} f6 {[%emt 0:00:30]} 17. Bc1 {[%emt 0:00:30]} Bf5 {[%emt 0:00:30]} 18. Ra3 {[%emt 0:00:30]} Bxe4 {[%emt 0:00:00]} 19. fxe4 {[%emt 0:00:00]} c4 {[%emt 0:00:00]} 20. Bf1 {[%emt 0:00:00]} b5 {[%emt 0:00:00]} 21. Bd2 {[%emt 0:00:00]} Qb6 {[%emt 0:00:00]} 22. Be3 {[%emt 0:00:00]} Qb7 {[%emt 0:00:00]} 23. Bd4 {[%emt 0:00:00]} b4 {[%emt 0:00:00]} 24. Rae3 {[%emt 0:00:00]} Rac8 {[%emt 0:00:00]} 25. f4 {[%emt 0:00:00]} Nd7 {[%emt 0:00:00]} 26. Qd2 {[%emt 0:00:00]} a5 {[%emt 0:00:00]} 27. Kh2 {[%emt 0:00:00]} Nb6 {[%emt 0:00:00]} 28. Qc2 {[%emt 0:00:00]} f5 {[%emt 0:00:00]} 29. Bxg7 {[%emt 0:00:00]} Qxg7 {[%emt 0:01:28]} 30. exf5 {[%emt 0:00:00]} Rxe3 {[%emt 0:00:04]} 31. Rxe3 {[%emt 0:00:00]} c3 {[%emt 0:00:06]} 32. bxc3 {[%emt 0:00:54]} Nxd5 {[%emt 0:02:35]} 33. Qb3 {[%emt 0:00:36]} Qf7 {[%emt 0:00:24]} 34. Re6 {[%emt 0:01:59]} Nxc3 {[%emt 0:02:53]} 35. fxg6 {[%emt 0:02:55]} hxg6 {[%emt 0:00:03]} 36. Bd3 {[%emt 0:01:32]} d5 {[%emt 0:00:44]} 37. Rxg6+ {[%emt 0:00:28]} Kf8 {[%emt 0:00:03]} 38. Qc2 {[%emt 0:00:31]} Re8 {[%emt 0:00:51]} 39. f5 {[%emt 0:01:01]} Re3 {[%emt 0:00:46]} 40. Qf2 {[%emt 0:00:00]} Qe7 {[%emt 0:00:00]} 41. Qf4 {[%emt 0:22:52]} Re2+ {[%emt 0:03:37]} 42. Kh1 {[%emt 0:00:38]} Re1+ {[%emt 0:04:27]} 43. Kg2 {[%emt 0:00:16]} Qc5 {[%emt 0:15:57]} 44. Qh6+ {[%emt 0:04:31]} Ke8 {[%emt 0:00:05]} 45. Qh8+ {[%emt 0:01:57]} Kd7 {[%emt 0:00:20]} 46. Rg7+ {[%emt 0:00:30]} Re7 {[%emt 0:00:42]} 47. f6 {[%emt 0:00:21]} Rxg7 {[%emt 0:00:55]} 48. Qxg7+ {[%emt 0:00:59]} Kc6 {[%emt 0:01:16]} 49. f7 {[%emt 0:00:19]} Qe3 {[%emt 0:05:37]} 50. Qg6+ {[%emt 0:00:16]} 1-0

[Event "European Womens-ch 2025"]
[Site "Rhodes"]
[Date "2025.04.09"]
[Round "9.25"]
[White "Heinemann, Josefine"]
[Black "Ibrahimova, Sabina"]
[Result "1/2-1/2"]
[Annotator "ChessBase"]
[ECO "C43"]
[WhiteElo "2297"]
[BlackElo "2199"]
[PlyCount "77"]
[EventDate "2025.03.29"]
[EventType "swiss"]
[EventCountry "GRE"]
[SourceTitle "playchess.com"]
[Source "ChessBase"]
[SourceQuality "1"]
[TimeControl "40/5400+30:1800+30"]

1. e4 {[%emt 0:00:02]} e5 {[%emt 0:01:57]} 2. Nf3 {[%emt 0:00:11]} Nf6 {[%emt 0:00:10]} 3. d4 {[%emt 0:01:48]} Nxe4 {[%emt 0:00:16]} 4. Bd3 {[%emt 0:00:11]} d5 {[%emt 0:00:11]} 5. Nxe5 {[%emt 0:01:00]} Nd7 {[%emt 0:00:33]} 6. Nc3 {[%emt 0:01:09]} Nxe5 {[%emt 0:01:36]} 7. dxe5 {[%emt 0:01:39]} Bb4 {[%emt 0:01:07]} 8. O-O {[%emt 0:02:10]} Nxc3 {[%emt 0:00:33]} 9. bxc3 {[%emt 0:00:04]} Bxc3 {[%emt 0:00:13]} 10. Rb1 {[%emt 0:00:19]} O-O {[%emt 0:00:49]} 11. Bxh7+ {[%emt 0:00:37]} Kxh7 {[%emt 0:00:11]} 12. Qd3+ {[%emt 0:00:15]} Kg8 {[%emt 0:00:18]} 13. Qxc3 {[%emt 0:00:13]} a5 {[%emt 0:00:57]} 14. Qg3 {[%emt 0:04:27]} Ra6 {[%emt 0:02:56]} 15. Bg5 {[%emt 0:04:43]} Qd7 {[%emt 0:00:37]} 16. f4 {[%emt 0:01:19]} Qf5 {[%emt 0:02:00]} 17. Rb3 {[%emt 0:12:45]} Rg6 {[%emt 0:07:25]} 18. Qf2 {[%emt 0:02:03]} f6 {[%emt 0:12:26]} 19. exf6 {[%emt 0:00:17]} gxf6 {[%emt 0:00:08]} 20. Bh4 {[%emt 0:01:04]} d4 {[%emt 0:06:57]} 21. Re1 {[%emt 0:13:58]} Bd7 {[%emt 0:10:27]} 22. Qxd4 {[%emt 0:22:02]} Bc6 {[%emt 0:15:41]} 23. Bg3 {[%emt 0:00:18]} Qxc2 {[%emt 0:04:00]} 24. Rb2 {[%emt 0:00:12]} Qf5 {[%emt 0:00:41]} 25. Rd2 {[%emt 0:00:15]} Rg7 {[%emt 0:02:50]} 26. Qc4+ {[%emt 0:04:38]} Kh8 {[%emt 0:02:05]} 27. Red1 {[%emt 0:07:36]} Re8 {[%emt 0:16:40]} 28. Qc3 {[%emt 0:01:53]} Kh7 {[%emt 0:03:39]} 29. Rc1 {[%emt 0:04:48]} Rge7 {[%emt 0:01:15]} 30. Qc5 {[%emt 0:03:56]} Qxc5+ {[%emt 0:03:54]} 31. Rxc5 {[%emt 0:00:04]} Re2 {[%emt 0:00:15]} 32. Rcc2 {[%emt 0:01:45]} Rxd2 {[%emt 0:00:19]} 33. Rxd2 {[%emt 0:00:04]} Kg6 {[%emt 0:00:34]} 34. f5+ {[%emt 0:00:19]} Kxf5 {[%emt 0:00:34]} 35. Bxc7 {[%emt 0:00:06]} a4 {[%emt 0:00:32]} 36. a3 {[%emt 0:00:45]} Rg8 {[%emt 0:02:31]} 37. g3 {[%emt 0:02:29]} Re8 {[%emt 0:00:44]} 38. Kf2 {[%emt 0:00:39]} Kg6 {[%emt 0:00:42]} 39. Re2 {[%emt 0:01:22]} 1/2-1/2

[Event "European Womens-ch 2025"]
[Site "Rhodes"]
[Date "2025.04.09"]
[Round "9.26"]
[White "Yao, Lan"]
[Black "Eric, Jovana"]
[Result "1-0"]
[Annotator "ChessBase"]
[ECO "C02"]
[WhiteElo "2294"]
[BlackElo "2147"]
[PlyCount "133"]
[EventDate "2025.03.29"]
[EventType "swiss"]
[EventCountry "GRE"]
[SourceTitle "playchess.com"]
[Source "ChessBase"]
[SourceQuality "1"]
[TimeControl "40/5400+30:1800+30"]

1. e4 {[%emt 0:00:52]} e6 {[%emt 0:00:09]} 2. d4 {[%emt 0:00:04]} d5 {[%emt 0:00:07]} 3. e5 {[%emt 0:00:08]} c5 {[%emt 0:00:07]} 4. c3 {[%emt 0:00:05]} Nc6 {[%emt 0:00:09]} 5. Nf3 {[%emt 0:00:02]} Qb6 {[%emt 0:00:07]} 6. Bd3 {[%emt 0:00:39]} cxd4 {[%emt 0:01:00]} 7. O-O {[%emt 0:00:11]} Bd7 {[%emt 0:02:11]} 8. Re1 {[%emt 0:00:05]} Nge7 {[%emt 0:03:14]} 9. h4 {[%emt 0:02:09]} h6 {[%emt 0:02:24]} 10. Nbd2 {[%emt 0:06:41]} Nf5 {[%emt 0:06:45]} 11. Nb3 {[%emt 0:05:17]} Be7 {[%emt 0:02:41]} 12. Bxf5 {[%emt 0:01:12]} exf5 {[%emt 0:00:07]} 13. Nbxd4 {[%emt 0:00:03]} Nxd4 {[%emt 0:01:43]} 14. Nxd4 {[%emt 0:01:19]} O-O {[%emt 0:01:43]} 15. Be3 {[%emt 0:37:52]} Qg6 {[%emt 0:06:38]} 16. Nf3 {[%emt 0:07:27]} Qg4 {[%emt 0:02:42]} 17. g3 {[%emt 0:02:22]} Rfd8 {[%emt 0:12:43]} 18. Nd4 {[%emt 0:02:43]} Qxd1 {[%emt 0:11:54]} 19. Raxd1 {[%emt 0:00:03]} Be6 {[%emt 0:00:16]} 20. Rd2 {[%emt 0:02:21]} a6 {[%emt 0:00:51]} 21. Red1 {[%emt 0:01:05]} Rac8 {[%emt 0:00:40]} 22. Ne2 {[%emt 0:03:45]} g5 {[%emt 0:05:43]} 23. hxg5 {[%emt 0:02:35]} hxg5 {[%emt 0:00:07]} 24. Bb6 {[%emt 0:05:56]} Re8 {[%emt 0:03:58]} 25. Nd4 {[%emt 0:01:13]} Kg7 {[%emt 0:02:05]} 26. Kg2 {[%emt 0:01:50]} Rh8 {[%emt 0:02:03]} 27. Rh1 {[%emt 0:04:46]} Rxh1 {[%emt 0:02:04]} 28. Kxh1 {[%emt 0:00:01]} Kg6 {[%emt 0:00:15]} 29. Kg2 {[%emt 0:00:36]} Rc4 {[%emt 0:03:24]} 30. Rd1 {[%emt 0:04:01]} Rc8 {[%emt 0:00:42]} 31. Rh1 {[%emt 0:01:09]} Bd7 {[%emt 0:02:39]} 32. f4 {[%emt 0:02:18]} g4 {[%emt 0:00:50]} 33. Kf2 {[%emt 0:00:20]} Be6 {[%emt 0:01:45]} 34. Ke3 {[%emt 0:00:16]} Kg7 {[%emt 0:02:05]} 35. Kd3 {[%emt 0:00:40]} Kg6 {[%emt 0:00:49]} 36. a4 {[%emt 0:01:53]} Bd7 {[%emt 0:03:59]} 37. b3 {[%emt 0:00:06]} Be6 {[%emt 0:06:09]} 38. Nc2 {[%emt 0:01:34]} Rc6 {[%emt 0:03:31]} 39. Bd4 {[%emt 0:03:11]} Rc8 {[%emt 0:01:49]} 40. Ne3 {[%emt 0:00:00]} Kg7 {[%emt 0:00:00]} 41. Bb6 {[%emt 0:03:00]} Kg6 {[%emt 0:12:17]} 42. Nc2 {[%emt 0:09:08]} Rc6 {[%emt 0:01:29]} 43. a5 {[%emt 0:00:19]} Rc8 {[%emt 0:00:15]} 44. Rh2 {[%emt 0:02:06]} Kg7 {[%emt 0:05:06]} 45. Ne3 {[%emt 0:00:20]} Kg6 {[%emt 0:01:24]} 46. Kd4 {[%emt 0:01:59]} Bd8 {[%emt 0:03:46]} 47. Bxd8 {[%emt 0:03:16]} Rxd8 {[%emt 0:00:05]} 48. Rh1 {[%emt 0:02:56]} Rc8 {[%emt 0:00:47]} 49. Nc2 {[%emt 0:01:52]} Rd8 {[%emt 0:01:07]} 50. Nb4 {[%emt 0:00:17]} Rc8 {[%emt 0:00:47]} 51. Rh2 {[%emt 0:00:21]} Rd8 {[%emt 0:00:54]} 52. Nd3 {[%emt 0:00:20]} Bd7 {[%emt 0:03:37]} 53. Rh1 {[%emt 0:03:53]} Rc8 {[%emt 0:00:57]} 54. Re1 {[%emt 0:00:58]} Rc7 {[%emt 0:03:36]} 55. Nb4 {[%emt 0:02:40]} Be6 {[%emt 0:00:15]} 56. Re3 {[%emt 0:00:29]} Rd7 {[%emt 0:00:57]} 57. Rd3 {[%emt 0:00:22]} Kg7 {[%emt 0:01:00]} 58. Kc5 {[%emt 0:00:22]} Rc7+ {[%emt 0:00:10]} 59. Kb6 {[%emt 0:00:07]} Rd7 {[%emt 0:00:05]} 60. c4 {[%emt 0:01:39]} d4 {[%emt 0:01:52]} 61. Nc2 {[%emt 0:00:38]} f6 {[%emt 0:00:23]} 62. exf6+ {[%emt 0:00:24]} Kxf6 {[%emt 0:00:06]} 63. Rxd4 {[%emt 0:00:11]} Rh7 {[%emt 0:00:15]} 64. Nb4 {[%emt 0:01:05]} Rh3 {[%emt 0:03:07]} 65. Rd3 {[%emt 0:00:05]} Rh7 {[%emt 0:01:14]} 66. Nd5+ {[%emt 0:00:14]} Kg6 {[%emt 0:00:46]} 67. Nc7 {[%emt 0:00:16]} 1-0

[Event "European Womens-ch 2025"]
[Site "Rhodes"]
[Date "2025.04.09"]
[Round "9.27"]
[White "Abdinova, Narmin"]
[Black "Zimina, Olga"]
[Result "1-0"]
[Annotator "ChessBase"]
[ECO "E08"]
[WhiteElo "2165"]
[BlackElo "2293"]
[PlyCount "135"]
[EventDate "2025.03.29"]
[EventType "swiss"]
[EventCountry "GRE"]
[SourceTitle "playchess.com"]
[Source "ChessBase"]
[SourceQuality "1"]
[TimeControl "40/5400+30:1800+30"]

1. d4 {[%emt 0:02:18]} Nf6 {[%emt 0:00:05]} 2. c4 {[%emt 0:00:06]} e6 {[%emt 0:00:04]} 3. g3 {[%emt 0:00:04]} d5 {[%emt 0:00:06]} 4. Nf3 {[%emt 0:00:15]} Be7 {[%emt 0:00:05]} 5. Bg2 {[%emt 0:00:08]} O-O {[%emt 0:00:05]} 6. O-O {[%emt 0:00:06]} c6 {[%emt 0:00:04]} 7. Qc2 {[%emt 0:00:08]} b6 {[%emt 0:00:05]} 8. b3 {[%emt 0:00:06]} Nbd7 {[%emt 0:03:22]} 9. Rd1 {[%emt 0:00:48]} h6 {[%emt 0:00:32]} 10. Nbd2 {[%emt 0:02:47]} Bb7 {[%emt 0:00:25]} 11. e4 {[%emt 0:07:11]} dxe4 {[%emt 0:01:23]} 12. Nxe4 {[%emt 0:02:05]} c5 {[%emt 0:00:20]} 13. Nxf6+ {[%emt 0:07:13]} Bxf6 {[%emt 0:00:45]} 14. Bb2 {[%emt 0:04:01]} cxd4 {[%emt 0:03:36]} 15. Bxd4 {[%emt 0:12:36]} Qc7 {[%emt 0:04:25]} 16. Rd2 {[%emt 0:21:36]} Bxd4 {[%emt 0:08:40]} 17. Rxd4 {[%emt 0:00:03]} a5 {[%emt 0:16:23]} 18. Rad1 {[%emt 0:04:18]} Nc5 {[%emt 0:01:12]} 19. Qe2 {[%emt 0:00:33]} Rad8 {[%emt 0:23:17]} 20. Qe5 {[%emt 0:03:05]} Qc8 {[%emt 0:04:18]} 21. Qe3 {[%emt 0:06:01]} Qa8 {[%emt 0:05:14]} 22. Nh4 {[%emt 0:02:35]} Rxd4 {[%emt 0:02:55]} 23. Qxd4 {[%emt 0:01:27]} Rc8 {[%emt 0:00:27]} 24. Qd6 {[%emt 0:04:32]} Bxg2 {[%emt 0:01:19]} 25. Nxg2 {[%emt 0:00:11]} Qf3 {[%emt 0:00:36]} 26. Ne1 {[%emt 0:03:22]} Qe2 {[%emt 0:03:01]} 27. Qd2 {[%emt 0:00:05]} Qe4 {[%emt 0:01:16]} 28. Qd4 {[%emt 0:01:17]} Qe2 {[%emt 0:04:42]} 29. Qd2 {[%emt 0:00:05]} Qh5 {[%emt 0:02:55]} 30. Kg2 {[%emt 0:01:24]} Ne4 {[%emt 0:02:08]} 31. Qd4 {[%emt 0:04:17]} b5 {[%emt 0:02:00]} 32. Nf3 {[%emt 0:01:11]} Nf6 {[%emt 0:03:36]} 33. Qb6 {[%emt 0:08:08]} bxc4 {[%emt 0:00:35]} 34. bxc4 {[%emt 0:00:02]} Kh7 {[%emt 0:05:06]} 35. Qb1+ {[%emt 0:00:49]} Kg8 {[%emt 0:00:29]} 36. Qb7 {[%emt 0:00:36]} Rxc4 {[%emt 0:01:27]} 37. Rd8+ {[%emt 0:00:11]} Kh7 {[%emt 0:00:01]} 38. Qb8 {[%emt 0:00:34]} Re4 {[%emt 0:01:34]} 39. Nh4 {[%emt 0:02:25]} Rxh4 {[%emt 0:00:43]} 40. gxh4 {[%emt 0:00:00]} e5 {[%emt 0:00:00]} 41. Rh8+ {[%emt 0:04:59]} Kg6 {[%emt 0:01:26]} 42. Qb1+ {[%emt 0:00:16]} e4 {[%emt 0:00:07]} 43. Qb3 {[%emt 0:00:07]} Nd5 {[%emt 0:07:17]} 44. Qg3+ {[%emt 0:08:31]} Kf5 {[%emt 0:00:17]} 45. h3 {[%emt 0:00:20]} Qe2 {[%emt 0:16:46]} 46. Qg4+ {[%emt 0:13:01]} Qxg4+ {[%emt 0:00:07]} 47. hxg4+ {[%emt 0:00:06]} Kxg4 {[%emt 0:00:03]} 48. Ra8 {[%emt 0:00:08]} e3 {[%emt 0:01:48]} 49. fxe3 {[%emt 0:00:05]} Nxe3+ {[%emt 0:00:02]} 50. Kf2 {[%emt 0:00:11]} Nc4 {[%emt 0:00:44]} 51. Rd8 {[%emt 0:02:17]} Ne5 {[%emt 0:05:15]} 52. Rd5 {[%emt 0:00:32]} Kf4 {[%emt 0:01:44]} 53. Rxa5 {[%emt 0:00:18]} g5 {[%emt 0:00:06]} 54. Ra4+ {[%emt 0:02:11]} Kf5 {[%emt 0:00:02]} 55. h5 {[%emt 0:01:19]} g4 {[%emt 0:01:15]} 56. Kg3 {[%emt 0:00:10]} f6 {[%emt 0:00:29]} 57. Rf4+ {[%emt 0:01:25]} Kg5 {[%emt 0:00:02]} 58. Re4 {[%emt 0:01:17]} Nd3 {[%emt 0:01:56]} 59. Rxg4+ {[%emt 0:01:32]} Kxh5 {[%emt 0:00:02]} 60. Rd4 {[%emt 0:00:13]} Nc1 {[%emt 0:00:22]} 61. Rd5+ {[%emt 0:01:44]} Kg6 {[%emt 0:00:02]} 62. a4 {[%emt 0:00:37]} Ne2+ {[%emt 0:00:04]} 63. Kf3 {[%emt 0:00:45]} Nc3 {[%emt 0:00:03]} 64. Rd4 {[%emt 0:00:06]} Kf5 {[%emt 0:00:10]} 65. a5 {[%emt 0:00:31]} Ke5 {[%emt 0:00:08]} 66. Rc4 {[%emt 0:00:24]} Nd5 {[%emt 0:00:07]} 67. a6 {[%emt 0:00:08]} Kd6 {[%emt 0:00:15]} 68. Rd4 {[%emt 0:00:08]} 1-0

[Event "European Womens-ch 2025"]
[Site "Rhodes"]
[Date "2025.04.09"]
[Round "9.28"]
[White "Khachatryan, Anna"]
[Black "Mkrtchyan, Mariam"]
[Result "1/2-1/2"]
[Annotator "ChessBase"]
[ECO "D14"]
[WhiteElo "2091"]
[BlackElo "2282"]
[PlyCount "48"]
[EventDate "2025.03.29"]
[EventType "swiss"]
[EventCountry "GRE"]
[SourceTitle "playchess.com"]
[Source "ChessBase"]
[SourceQuality "1"]
[TimeControl "40/5400+30:1800+30"]

1. d4 {[%emt 0:00:03]} d5 {[%emt 0:00:16]} 2. c4 {[%emt 0:00:15]} c6 {[%emt 0:00:07]} 3. Nc3 {[%emt 0:01:04]} Nf6 {[%emt 0:00:08]} 4. cxd5 {[%emt 0:00:37]} cxd5 {[%emt 0:00:05]} 5. Bf4 {[%emt 0:01:12]} Nc6 {[%emt 0:00:07]} 6. e3 {[%emt 0:01:05]} Bf5 {[%emt 0:00:19]} 7. Bd3 {[%emt 0:01:53]} Bxd3 {[%emt 0:02:52]} 8. Qxd3 {[%emt 0:00:04]} e6 {[%emt 0:00:42]} 9. Nf3 {[%emt 0:02:34]} Bb4 {[%emt 0:02:57]} 10. O-O {[%emt 0:01:35]} Bxc3 {[%emt 0:07:47]} 11. Qxc3 {[%emt 0:03:35]} O-O {[%emt 0:00:11]} 12. Bg5 {[%emt 0:07:19]} Ne4 {[%emt 0:09:14]} 13. Bxd8 {[%emt 0:09:35]} Nxc3 {[%emt 0:00:09]} 14. Bh4 {[%emt 0:00:40]} Ne4 {[%emt 0:01:42]} 15. Rfc1 {[%emt 0:03:58]} Rfc8 {[%emt 0:02:34]} 16. Ne1 {[%emt 0:07:36]} f6 {[%emt 0:01:05]} 17. Nd3 {[%emt 0:07:52]} b6 {[%emt 0:00:13]} 18. Rc2 {[%emt 0:10:44]} Ne7 {[%emt 0:00:50]} 19. Rac1 {[%emt 0:00:59]} Rxc2 {[%emt 0:00:16]} 20. Rxc2 {[%emt 0:00:01]} Rc8 {[%emt 0:00:07]} 21. Rxc8+ {[%emt 0:01:21]} Nxc8 {[%emt 0:00:06]} 22. f3 {[%emt 0:37:28]} Ned6 {[%emt 0:01:46]} 23. Be1 {[%emt 0:00:00]} g5 {[%emt 0:02:32]} 24. g4 {[%emt 0:00:00]} Nc4 {[%emt 0:15:13]} 1/2-1/2

[Event "European Womens-ch 2025"]
[Site "Rhodes"]
[Date "2025.04.09"]
[Round "9.29"]
[White "Smietanska, Wiktoria"]
[Black "Ter-Avetisjana, Agnesa Stepania"]
[Result "0-1"]
[Annotator "ChessBase"]
[ECO "B12"]
[WhiteElo "2254"]
[BlackElo "2100"]
[PlyCount "98"]
[EventDate "2025.03.29"]
[EventType "swiss"]
[EventCountry "GRE"]
[SourceTitle "playchess.com"]
[Source "ChessBase"]
[SourceQuality "1"]
[TimeControl "40/5400+30:1800+30"]

1. e4 {[%emt 0:00:03]} c6 {[%emt 0:00:05]} 2. d4 {[%emt 0:00:06]} d5 {[%emt 0:00:04]} 3. e5 {[%emt 0:00:07]} Bf5 {[%emt 0:02:07]} 4. Nd2 {[%emt 0:00:11]} e6 {[%emt 0:00:10]} 5. Nb3 {[%emt 0:00:09]} Nd7 {[%emt 0:05:20]} 6. Nf3 {[%emt 0:00:15]} Qc7 {[%emt 0:02:37]} 7. Be2 {[%emt 0:03:28]} a6 {[%emt 0:03:33]} 8. Nh4 {[%emt 0:07:53]} Be4 {[%emt 0:01:23]} 9. f3 {[%emt 0:04:57]} Bg6 {[%emt 0:04:01]} 10. f4 {[%emt 0:01:27]} Be4 {[%emt 0:07:21]} 11. O-O {[%emt 0:02:20]} Be7 {[%emt 0:10:20]} 12. Nf3 {[%emt 0:02:38]} h5 {[%emt 0:06:24]} 13. c3 {[%emt 0:06:38]} Bxf3 {[%emt 0:03:17]} 14. Rxf3 {[%emt 0:01:02]} g6 {[%emt 0:00:52]} 15. Bd3 {[%emt 0:08:23]} Nh6 {[%emt 0:02:53]} 16. a4 {[%emt 0:02:41]} c5 {[%emt 0:04:45]} 17. Bc2 {[%emt 0:05:10]} Nf5 {[%emt 0:12:12]} 18. Kh1 {[%emt 0:04:18]} O-O-O {[%emt 0:04:11]} 19. dxc5 {[%emt 0:04:06]} Nxc5 {[%emt 0:03:41]} 20. Nxc5 {[%emt 0:08:45]} Bxc5 {[%emt 0:03:09]} 21. b4 {[%emt 0:00:29]} Ba7 {[%emt 0:02:31]} 22. Qe2 {[%emt 0:04:07]} h4 {[%emt 0:03:04]} 23. Bxf5 {[%emt 0:01:00]} gxf5 {[%emt 0:00:13]} 24. Be3 {[%emt 0:10:47]} Bxe3 {[%emt 0:00:07]} 25. Qxe3 {[%emt 0:00:13]} Qc4 {[%emt 0:05:05]} 26. Qd4 {[%emt 0:07:33]} Rhg8 {[%emt 0:01:54]} 27. Rd3 {[%emt 0:01:56]} Qb3 {[%emt 0:05:58]} 28. Qf2 {[%emt 0:04:42]} Rg4 {[%emt 0:05:50]} 29. h3 {[%emt 0:01:41]} Rg3 {[%emt 0:00:04]} 30. Rxg3 {[%emt 0:01:47]} hxg3 {[%emt 0:00:02]} 31. Qd2 {[%emt 0:04:17]} Kb8 {[%emt 0:01:29]} 32. a5 {[%emt 0:02:01]} Rc8 {[%emt 0:00:03]} 33. Rc1 {[%emt 0:00:48]} Qa3 {[%emt 0:00:21]} 34. Kg1 {[%emt 0:00:46]} Rc4 {[%emt 0:01:04]} 35. Kf1 {[%emt 0:00:33]} d4 {[%emt 0:01:13]} 36. Ke2 {[%emt 0:00:40]} dxc3 {[%emt 0:00:35]} 37. Qd6+ {[%emt 0:00:27]} Rc7 {[%emt 0:00:01]} 38. Qd8+ {[%emt 0:00:33]} Rc8 {[%emt 0:00:01]} 39. Qd6+ {[%emt 0:00:16]} Ka8 {[%emt 0:00:02]} 40. Rc2 {[%emt 0:00:00]} Qb3 {[%emt 0:00:00]} 41. Kd1 {[%emt 0:05:02]} Qc4 {[%emt 0:03:35]} 42. Ke1 {[%emt 0:03:46]} Qe4+ {[%emt 0:02:01]} 43. Kd1 {[%emt 0:00:11]} Qe3 {[%emt 0:01:14]} 44. Qd7 {[%emt 0:01:10]} Qg1+ {[%emt 0:01:42]} 45. Ke2 {[%emt 0:00:02]} Qxg2+ {[%emt 0:00:09]} 46. Ke1 {[%emt 0:00:27]} Qg1+ {[%emt 0:00:12]} 47. Ke2 {[%emt 0:00:07]} Qf2+ {[%emt 0:00:04]} 48. Kd3 {[%emt 0:00:16]} Qf3+ {[%emt 0:00:04]} 49. Kd4 {[%emt 0:00:09]} Qe4# {[%emt 0:00:07]} 0-1

[Event "European Womens-ch 2025"]
[Site "Rhodes"]
[Date "2025.04.09"]
[Round "9.30"]
[White "Schneider, Jana"]
[Black "Donghvani, Nia"]
[Result "1-0"]
[Annotator "ChessBase"]
[ECO "B45"]
[WhiteElo "2251"]
[BlackElo "2025"]
[PlyCount "39"]
[EventDate "2025.03.29"]
[EventType "swiss"]
[EventCountry "GRE"]
[SourceTitle "playchess.com"]
[Source "ChessBase"]
[SourceQuality "1"]
[TimeControl "40/5400+30:1800+30"]

1. e4 {[%emt 0:00:07]} c5 {[%emt 0:00:03]} 2. Nf3 {[%emt 0:00:10]} e6 {[%emt 0:00:19]} 3. d4 {[%emt 0:00:32]} cxd4 {[%emt 0:00:38]} 4. Nxd4 {[%emt 0:00:15]} Nf6 {[%emt 0:00:04]} 5. Nc3 {[%emt 0:00:58]} Nc6 {[%emt 0:00:07]} 6. Bf4 {[%emt 0:00:32]} Bb4 {[%emt 0:06:27]} 7. Ndb5 {[%emt 0:00:20]} Nxe4 {[%emt 0:00:31]} 8. Qf3 {[%emt 0:00:36]} d5 {[%emt 0:09:26]} 9. Nc7+ {[%emt 0:00:36]} Kf8 {[%emt 0:00:05]} 10. Nxa8 {[%emt 0:00:17]} Nd4 {[%emt 0:37:30]} 11. Qd3 {[%emt 0:05:10]} Qf6 {[%emt 0:08:06]} 12. Be3 {[%emt 0:05:22]} e5 {[%emt 0:22:24]} 13. a3 {[%emt 0:12:49]} Bf5 {[%emt 0:08:29]} 14. axb4 {[%emt 0:02:56]} Nxf2 {[%emt 0:01:25]} 15. Qd2 {[%emt 0:06:09]} Nxh1 {[%emt 0:00:03]} 16. O-O-O {[%emt 0:02:20]} Bxc2 {[%emt 0:00:35]} 17. Bxd4 {[%emt 0:00:38]} Bxd1 {[%emt 0:00:16]} 18. Bc5+ {[%emt 0:00:23]} Kg8 {[%emt 0:00:34]} 19. Nxd5 {[%emt 0:01:05]} Qxf1 {[%emt 0:00:07]} 20. Ne7+ {[%emt 0:00:06]} 1-0